fUSD/lending_fUSD_20240423
["ID","MTS","AMOUNT","RATE_DAILY","PERIOD"]
[323313550,1713885067806,-500.0,0.00012559,2]
[323313551,1713885067817,-500.0,0.00012559,2]
[323313552,1713885067827,-1306.8,0.00012559,2]
[323313553,1713885067836,-544.8,0.00012559,2]
[323313554,1713885067847,-500.0,0.00012559,2]
[323313555,1713885067857,-500.0,0.00012559,2]
[323313556,1713885067867,-500.0,0.00012559,2]
[323313557,1713885067877,-1018.31994187,0.00012559,2]
[323313558,1713885067887,-779.03,0.00012559,2]
[323313559,1713885067897,-500.0,0.00012559,2]
[323313560,1713885067907,-520.44,0.00012559,2]
[323313561,1713885067916,-500.0,0.00012559,2]
[323313562,1713885067925,-1020.17,0.00012559,2]
[323313563,1713885067934,-500.0,0.00012559,2]
[323313564,1713885067944,-500.0,0.00012559,2]
[323313565,1713885067955,-500.0,0.00012559,2]
[323313566,1713885067964,-1569.3,0.00012559,2]
[323313567,1713885067974,-187.82945565,0.00012559,2]
[323313568,1713885067984,-665.93,0.00012559,2]
[323313569,1713885067994,-500.0,0.00012559,2]
[323313570,1713885068003,-500.0,0.00012559,2]
[323313571,1713885068012,-500.0,0.00012559,2]
[323313572,1713885068022,-500.0,0.00012559,2]
[323313573,1713885068031,-500.0,0.00012559,2]
[323313574,1713885068044,-500.0,0.00012559,2]
[323313575,1713885068054,-4099.48,0.00012559,2]
[323313576,1713885068063,-500.0,0.00012559,2]
[323313577,1713885068073,-2493.62,0.00012559,2]
[323313578,1713885068082,-1932.4,0.00012559,2]
[323313579,1713885068092,-500.0,0.00012559,2]
[323313580,1713885068102,-500.0,0.00012559,2]
[323313581,1713885068113,-2027.7,0.00012559,2]
[323313582,1713885068123,-500.0,0.00012559,2]
[323313583,1713885068133,-500.0,0.00012559,2]
[323313584,1713885068143,-388.22,0.00012559,2]
[323313585,1713885068153,-500.0,0.00012559,2]
[323313586,1713885068162,-500.0,0.0001256,2]
[323313587,1713885068172,-500.0,0.0001256,2]
[323313588,1713885068181,-500.0,0.0001256,2]
[323313589,1713885068190,-708.13,0.0001256,2]
[323313590,1713885068201,-500.0,0.0001256,2]
[323313591,1713885068210,-500.0,0.0001256,2]
[323313592,1713885068219,-540.58,0.0001256,2]
[323313593,1713885068229,-500.0,0.0001256,2]
[323313594,1713885068238,-500.0,0.0001256,2]
[323313595,1713885068248,-500.0,0.0001256,2]
[323313596,1713885068258,-500.0,0.0001256,2]
[323313597,1713885068268,-500.0,0.0001256,2]
[323313598,1713885068278,-500.0,0.0001256,2]
[323313599,1713885068288,-500.0,0.0001256,2]
[323313600,1713885068297,-772.72,0.0001256,2]
[323313601,1713885068307,-500.0,0.0001256,2]
[323313602,1713885068316,-500.0,0.0001256,2]
[323313603,1713885068325,-500.0,0.0001256,2]
[323313604,1713885068337,-500.0,0.0001256,2]
[323313605,1713885068347,-502.49,0.0001256,2]
[323313606,1713885068356,-501.69003278,0.0001256,2]
[323313607,1713885068367,-500.0,0.0001256,2]
[323313608,1713885068376,-500.0,0.0001256,2]
[323313609,1713885068385,-500.99,0.0001256,2]
[323313610,1713885068394,-500.0,0.0001256,2]
[323313611,1713885068404,-500.0,0.0001256,2]
[323313612,1713885068413,-500.0,0.0001256,2]
[323313613,1713885068423,-500.0,0.0001256,2]
[323313614,1713885068433,-500.0,0.0001256,2]
[323313615,1713885068442,-500.0,0.0001256,2]
[323313616,1713885068453,-500.0,0.0001256,2]
[323313617,1713885068462,-152.81,0.0001256,2]
[323313618,1713885068471,-500.0,0.0001256,2]
[323313619,1713885068481,-500.0,0.0001256,2]
[323313620,1713885068492,-500.0,0.0001256,2]
[323313621,1713885068502,-500.0,0.0001256,2]
[323313622,1713885068511,-500.0,0.0001256,2]
[323313623,1713885068520,-423.06,0.0001256,2]
[323313624,1713885068529,-500.0,0.0001256,2]
[323313625,1713885068538,-500.0,0.0001256,2]
[323313626,1713885068547,-500.0,0.0001256,2]
[323313627,1713885068556,-218.92,0.0001256,2]
[323313628,1713885068566,-425.67575912,0.0001256,2]
[323313629,1713885068576,-500.0,0.0001256,2]
[323313630,1713885068586,-500.0,0.0001256,2]
[323313631,1713885068595,-500.0,0.0001256,2]
[323313632,1713885068605,-500.0,0.0001256,2]
[323313633,1713885068613,-588.74,0.0001256,2]
[323313634,1713885068623,-500.0,0.0001256,2]
[323313635,1713885068632,-500.0,0.0001256,2]
[323313636,1713885068642,-1834.36084011,0.00012575,2]
[323313637,1713885068651,-1043.66826777,0.00012579,2]
[323313638,1713885068661,-300.0,0.000126,4]
[323313639,1713885068670,-1834.36084011,0.0001264,2]
[323313640,1713885068682,-296340.81194459,0.0001269,2]
[323313641,1713885068691,-300.0,0.000127,4]
[323313642,1713885068703,-1834.36084011,0.00012705,2]
[323313643,1713885068713,-1834.36084011,0.0001277,2]
[323313644,1713885068723,-155.0,0.000128,2]
[323313645,1713885068733,-416.3823664,0.000128,2]
[323313646,1713885068742,-300.0,0.000128,4]
[323313647,1713885068752,-837.37,0.00012832,2]
[323313648,1713885068763,-500.0,0.00012832,2]
[323313649,1713885068773,-799.66,0.00012832,2]
[323313650,1713885068782,-638.17,0.00012832,2]
[323313651,1713885068791,-500.0,0.00012832,2]
[323313652,1713885068801,-752.79,0.00012832,2]
[323313653,1713885068810,-862.47,0.00012832,2]
[323313654,1713885068819,-376.47065178,0.00012832,2]
[323313655,1713885068828,-2745.53,0.00012832,2]
[323313656,1713885068838,-5680.55,0.00012832,2]
[323313657,1713885068847,-820.49,0.00012832,2]
[323313658,1713885068856,-658.13,0.00012832,2]
[323313659,1713885068866,-4194.57,0.00012832,2]
[323313660,1713885068875,-734.34,0.00012832,2]
[323313661,1713885068884,-843.95,0.00012832,2]
[323313662,1713885068893,-1658.53,0.00012832,2]
[323313663,1713885068903,-523.46,0.00012832,2]
[323313664,1713885068912,-1893.65,0.00012832,2]
[323313665,1713885068922,-602.46,0.00012832,2]
[323313666,1713885068933,-4007.93,0.00012832,2]
[323313667,1713885068944,-1064.72,0.00012832,2]
[323313668,1713885068957,-1774.25,0.00012832,2]
[323313669,1713885068966,-740.12,0.00012832,2]
[323313670,1713885068975,-500.0,0.00012832,2]
[323313671,1713885068985,-500.0,0.00012832,2]
[323313672,1713885068994,-1774.77,0.00012832,2]
[323313673,1713885069003,-864.72,0.00012832,2]
[323313674,1713885069013,-520.06,0.00012832,2]
[323313675,1713885069022,-1417.05,0.00012832,2]
[323313676,1713885069032,-500.0,0.00012833,2]
[323313677,1713885069041,-500.0,0.00012833,2]
[323313678,1713885069050,-500.0,0.00012833,2]
[323313679,1713885069059,-500.0,0.00012833,2]
[323313680,1713885069068,-475.2,0.00012833,2]
[323313681,1713885069077,-500.0,0.00012833,2]
[323313682,1713885069087,-500.0,0.00012833,2]
[323313683,1713885069096,-517.14,0.00012833,2]
[323313684,1713885069105,-500.0,0.00012833,2]
[323313685,1713885069115,-728.44,0.00012833,2]
[323313686,1713885069124,-590.28,0.00012833,2]
[323313687,1713885069133,-500.0,0.00012833,2]
[323313688,1713885069142,-500.0,0.00012833,2]
[323313689,1713885069151,-571.73,0.00012833,2]
[323313690,1713885069161,-982.16,0.00012833,2]
[323313691,1713885069171,-500.0,0.00012833,2]
[323313692,1713885069180,-500.0,0.00012833,2]
[323313693,1713885069190,-500.0,0.00012833,2]
[323313694,1713885069202,-611.25,0.00012833,2]
[323313695,1713885069212,-804.34,0.00012833,2]
[323313696,1713885069221,-550.48,0.00012833,2]
[323313697,1713885069232,-500.0,0.00012833,2]
[323313698,1713885069242,-500.0,0.00012833,2]
[323313699,1713885069253,-787.16,0.00012833,2]
[323313700,1713885069262,-723.23,0.00012833,2]
[323313701,1713885069274,-500.0,0.00012833,2]
[323313702,1713885069284,-696.25,0.00012833,2]
[323313703,1713885069293,-500.0,0.00012833,2]
[323313704,1713885069303,-500.0,0.00012833,2]
[323313705,1713885069313,-500.0,0.00012833,2]
[323313706,1713885069323,-500.0,0.00012833,2]
[323313707,1713885069332,-500.0,0.00012833,2]
[323313708,1713885069342,-882.51,0.00012833,2]
[323313709,1713885069351,-500.0,0.00012833,2]
[323313710,1713885069361,-500.0,0.00012833,2]
[323313711,1713885069370,-500.0,0.00012833,2]
[323313712,1713885069380,-500.0,0.00012833,2]
[323313713,1713885069389,-500.0,0.00012833,2]
[323313714,1713885069398,-500.0,0.00012833,2]
[323313715,1713885069410,-500.0,0.00012833,2]
[323313716,1713885069419,-500.0,0.00012833,2]
[323313717,1713885069428,-500.0,0.00012833,2]
[323313718,1713885069437,-500.0,0.00012833,2]
[323313719,1713885069447,-500.0,0.00012833,2]
[323313720,1713885069456,-500.0,0.00012833,2]
[323313721,1713885069466,-500.0,0.00012833,2]
[323313722,1713885069475,-500.0,0.00012833,2]
[323313723,1713885069484,-500.0,0.00012833,2]
[323313724,1713885069494,-500.0,0.00012833,2]
[323313725,1713885069503,-500.0,0.00012833,2]
[323313726,1713885069512,-500.0,0.00012833,2]
[323313727,1713885069521,-500.0,0.00012833,2]
[323313728,1713885069530,-500.0,0.00012833,2]
[323313729,1713885069539,-500.0,0.00012833,2]
[323313730,1713885069549,-500.0,0.00012833,2]
[323313731,1713885069558,-500.0,0.00012833,2]
[323313732,1713885069567,-218.33,0.00012833,2]
[323313733,1713885069576,-500.0,0.00012833,2]
[323313734,1713885069585,-1018.89,0.00012833,2]
[323313735,1713885069594,-579.9,0.00012833,2]
[323313736,1713885069603,-239.0,0.00012833,2]
[323313737,1713885069612,-500.0,0.00012833,2]
[323313738,1713885069621,-711.01,0.00012833,2]
[323313739,1713885069630,-500.0,0.00012833,2]
[323313740,1713885069640,-706.45,0.00012833,2]
[323313741,1713885069649,-500.0,0.00012833,2]
[323313742,1713885069658,-552.88,0.00012833,2]
[323313743,1713885069667,-500.0,0.00012833,2]
[323313744,1713885069677,-500.0,0.00012833,2]
[323313745,1713885069689,-500.0,0.00012833,2]
[323313746,1713885069701,-686.97,0.00012833,2]
[323313747,1713885069710,-500.0,0.00012833,2]
[323313748,1713885069719,-500.0,0.00012833,2]
[323313749,1713885069730,-500.0,0.00012833,2]
[323313750,1713885069739,-500.0,0.00012833,2]
[323313751,1713885069749,-604.25,0.00012833,2]
[323313752,1713885069758,-500.0,0.00012833,2]
[323313753,1713885069770,-500.0,0.00012833,2]
[323313754,1713885069779,-701.02,0.00012833,2]
[323313755,1713885069789,-500.0,0.00012833,2]
[323313756,1713885069798,-500.0,0.00012833,2]
[323313757,1713885069808,-500.0,0.00012833,2]
[323313758,1713885069818,-500.0,0.00012833,2]
[323313759,1713885069827,-618.33873121,0.00012833,2]
[323313760,1713885069837,-1026.59,0.00012833,2]
[323313761,1713885069847,-733.09,0.00012833,2]
[323313762,1713885069857,-680.83,0.00012833,2]
[323313763,1713885069867,-843.34,0.00012833,2]
[323313764,1713885069877,-500.0,0.00012833,2]
[323313765,1713885069887,-500.0,0.00012833,2]
[323313766,1713885069897,-500.0,0.00012833,2]
[323313767,1713885069906,-167.14949948,0.00012833,2]
[323313768,1713885069917,-291.03,0.00012833,2]
[323313769,1713885069927,-574.69,0.00012833,2]
[323313770,1713885069937,-500.0,0.00012833,2]
[323313771,1713885069947,-543.72,0.00012833,2]
[323313772,1713885069958,-500.0,0.00012833,2]
[323313773,1713885069967,-500.0,0.00012833,2]
[323313774,1713885069977,-723.11,0.00012833,2]
[323313775,1713885069987,-500.0,0.00012833,2]
[323313776,1713885069996,-1007.2,0.00012833,2]
[323313777,1713885070006,-500.0,0.00012833,2]
[323313778,1713885070016,-535.61,0.00012833,2]
[323313779,1713885070025,-500.0,0.00012833,2]
[323313780,1713885070034,-500.0,0.00012833,2]
[323313781,1713885070044,-516.37,0.00012833,2]
[323313782,1713885070053,-565.77,0.00012833,2]
[323313783,1713885070063,-590.15,0.00012833,2]
[323313784,1713885070073,-2582.68,0.00012833,2]
[323313785,1713885070083,-1061.71,0.00012833,2]
[323313786,1713885070092,-1927.54,0.00012833,2]
[323313787,1713885070101,-253.82008115,0.00012833,2]
[323313788,1713885070111,-500.0,0.00012833,2]
[323313789,1713885070120,-5247.78,0.00012833,2]
[323313790,1713885070130,-861.67,0.00012833,2]
[323313791,1713885070140,-550.8,0.00012833,2]
[323313792,1713885070149,-500.0,0.00012833,2]
[323313793,1713885070159,-500.0,0.00012833,2]
[323313794,1713885070168,-500.0,0.00012833,2]
[323313795,1713885070178,-500.0,0.00012833,2]
[323313796,1713885070188,-1180.66,0.00012833,2]
[323313797,1713885070197,-765.91,0.00012833,2]
[323313798,1713885070210,-558.68590383,0.00012833,2]
[323313799,1713885070219,-500.0,0.00012833,2]
[323313800,1713885070229,-500.0,0.00012833,2]
[323313801,1713885070238,-1633.88,0.00012833,2]
[323313802,1713885070248,-500.0,0.00012833,2]
[323313803,1713885070258,-500.0,0.00012833,2]
[323313804,1713885070267,-1109.35,0.00012833,2]
[323313805,1713885070277,-694.6,0.00012833,2]
[323313806,1713885070287,-500.0,0.00012833,2]
[323313807,1713885070296,-1266.26,0.00012833,2]
[323313808,1713885070305,-1019.39,0.00012833,2]
[323313809,1713885070315,-1098.43,0.00012833,2]
[323313810,1713885070324,-500.0,0.00012833,2]
[323313811,1713885070335,-235.589969,0.00012833,2]
[323313812,1713885070347,-500.0,0.00012833,2]
[323313813,1713885070357,-553.08,0.00012833,2]
[323313814,1713885070366,-838.99,0.00012833,2]
[323313815,1713885070376,-719.43,0.00012833,2]
[323313816,1713885070386,-778.81,0.00012833,2]
[323313817,1713885070395,-500.0,0.00012833,2]
[323313818,1713885070406,-500.0,0.00012833,2]
[323313819,1713885070416,-2617.81,0.00012833,2]
[323313820,1713885070425,-1182.51,0.00012833,2]
[323313821,1713885070435,-554.09,0.00012833,2]
[323313822,1713885070446,-500.0,0.00012833,2]
[323313823,1713885070458,-500.0,0.00012833,2]
[323313824,1713885070468,-2297.67,0.00012833,2]
[323313825,1713885070477,-500.0,0.00012833,2]
[323313826,1713885070487,-20704.37,0.00012833,2]
[323313827,1713885070497,-1317.09,0.00012833,2]
[323313828,1713885070506,-547.33,0.00012833,2]
[323313829,1713885070516,-500.0,0.00012833,2]
[323313830,1713885070526,-500.0,0.00012833,2]
[323313831,1713885070536,-2683.66,0.00012833,2]
[323313832,1713885070547,-500.0,0.00012833,2]
[323313833,1713885070557,-500.0,0.00012833,2]
[323313834,1713885070568,-3151.59,0.00012833,2]
[323313835,1713885070578,-500.0,0.00012833,2]
[323313836,1713885070588,-2540.15,0.00012833,2]
[323313837,1713885070598,-958.99,0.00012833,2]
[323313838,1713885070607,-500.0,0.00012833,2]
[323313839,1713885070619,-500.0,0.00012833,2]
[323313840,1713885070630,-500.0,0.00012833,2]
[323313841,1713885070640,-1437.11,0.00012833,2]
[323313842,1713885070650,-500.0,0.00012833,2]
[323313843,1713885070661,-1032.63,0.00012833,2]
[323313844,1713885070671,-738.66,0.00012833,2]
[323313845,1713885070682,-688.24,0.00012833,2]
[323313846,1713885070694,-826.04,0.00012833,2]
[323313847,1713885070706,-548.39,0.00012833,2]
[323313848,1713885070717,-1241.26,0.00012833,2]
[323313849,1713885070726,-500.0,0.00012833,2]
[323313850,1713885070737,-630.35,0.00012833,2]
[323313851,1713885070747,-536.97,0.00012833,2]
[323313852,1713885070759,-558.9,0.00012833,2]
[323313853,1713885070770,-1100.67,0.00012833,2]
[323313854,1713885070780,-500.0,0.00012833,2]
[323313855,1713885070790,-987.43,0.00012833,2]
[323313856,1713885070799,-1643.78,0.00012833,2]
[323313857,1713885070809,-500.0,0.00012833,2]
[323313858,1713885070819,-740.88,0.00012833,2]
[323313859,1713885070831,-649.63,0.00012833,2]
[323313860,1713885070841,-500.0,0.00012833,2]
[323313861,1713885070851,-500.0,0.00012833,2]
[323313862,1713885070861,-500.0,0.00012833,2]
[323313863,1713885070870,-613.73,0.00012833,2]
[323313864,1713885070880,-500.0,0.00012833,2]
[323313865,1713885070890,-500.0,0.00012833,2]
[323313866,1713885070899,-2325.56,0.00012833,2]
[323313867,1713885070909,-1086.28,0.00012833,2]
[323313868,1713885070920,-994.88,0.00012833,2]
[323313869,1713885070930,-1439.79,0.00012833,2]
[323313870,1713885070940,-500.0,0.00012833,2]
[323313871,1713885070953,-500.0,0.00012833,2]
[323313872,1713885070963,-1048.54,0.00012833,2]
[323313873,1713885070972,-500.0,0.00012833,2]
[323313874,1713885070984,-504.37,0.00012833,2]
[323313875,1713885070993,-1069.93,0.00012833,2]
[323313876,1713885071003,-500.0,0.00012833,2]
[323313877,1713885071013,-828.02,0.00012833,2]
[323313878,1713885071023,-500.0,0.00012833,2]
[323313879,1713885071032,-1306.8,0.00012833,2]
[323313880,1713885071043,-544.8,0.00012833,2]
[323313881,1713885071052,-500.0,0.00012833,2]
[323313882,1713885071062,-411.68,0.00012833,2]
[323313883,1713885071072,-500.0,0.00012833,2]
[323313884,1713885071083,-779.03,0.00012833,2]
[323313885,1713885071093,-379.64071798,0.00012833,2]
[323313886,1713885071103,-520.44,0.00012833,2]
[323313887,1713885071113,-607.6994259,0.00012833,2]
[323313888,1713885071123,-1020.17,0.00012833,2]
[323313889,1713885071133,-500.0,0.00012833,2]
[323313890,1713885071143,-500.0,0.00012833,2]
[323313891,1713885071153,-500.0,0.00012833,2]
[323313892,1713885071163,-1569.3,0.00012833,2]
[323313893,1713885071173,-665.93,0.00012833,2]
[323313894,1713885071183,-500.0,0.00012833,2]
[323313895,1713885071192,-500.0,0.00012833,2]
[323313896,1713885071205,-500.0,0.00012833,2]
[323313897,1713885071216,-500.0,0.00012833,2]
[323313898,1713885071226,-500.0,0.00012833,2]
[323313899,1713885071236,-500.0,0.00012833,2]
[323313900,1713885071247,-4099.48,0.00012833,2]
[323313901,1713885071257,-500.0,0.00012833,2]
[323313902,1713885071267,-2493.62,0.00012833,2]
[323313903,1713885071277,-500.0,0.00012833,2]
[323313904,1713885071286,-1932.4,0.00012833,2]
[323313905,1713885071296,-500.0,0.00012833,2]
[323313906,1713885071307,-2027.7,0.00012833,2]
[323313907,1713885071317,-500.0,0.00012833,2]
[323313908,1713885071327,-500.0,0.00012833,2]
[323313909,1713885071337,-500.0,0.00012833,2]
[323313910,1713885071347,-500.0,0.00012834,2]
[323313911,1713885071357,-500.0,0.00012834,2]
[323313912,1713885071367,-500.0,0.00012834,2]
[323313913,1713885071377,-708.13,0.00012834,2]
[323313914,1713885071387,-500.0,0.00012834,2]
[323313915,1713885071397,-500.0,0.00012834,2]
[323313916,1713885071407,-500.0,0.00012834,2]
[323313917,1713885071417,-500.0,0.00012834,2]
[323313918,1713885071427,-500.0,0.00012834,2]
[323313919,1713885071438,-500.0,0.00012834,2]
[323313920,1713885071448,-500.0,0.00012834,2]
[323313921,1713885071462,-500.0,0.00012834,2]
[323313922,1713885071471,-772.72,0.00012834,2]
[323313923,1713885071481,-500.0,0.00012834,2]
[323313924,1713885071491,-500.0,0.00012834,2]
[323313925,1713885071501,-500.0,0.00012834,2]
[323313926,1713885071510,-500.0,0.00012834,2]
[323313927,1713885071520,-177.8823802,0.00012834,2]
[323313928,1713885071531,-500.0,0.00012834,2]
[323313929,1713885071541,-500.99,0.00012834,2]
[323313930,1713885071550,-500.0,0.00012834,2]
[323313931,1713885071561,-500.0,0.00012834,2]
[323313932,1713885071570,-500.0,0.00012834,2]
[323313933,1713885071581,-500.0,0.00012834,2]
[323313934,1713885071591,-451.80518514,0.00012834,2]
[323313935,1713885071600,-500.0,0.00012834,2]
[323313936,1713885071610,-500.0,0.00012834,2]
[323313937,1713885071620,-500.0,0.00012834,2]
[323313938,1713885071631,-500.0,0.00012834,2]
[323313939,1713885071640,-500.0,0.00012834,2]
[323313940,1713885071650,-500.0,0.00012834,2]
[323313941,1713885071660,-500.0,0.00012834,2]
[323313942,1713885071670,-500.0,0.00012834,2]
[323313943,1713885071681,-500.0,0.00012834,2]
[323313944,1713885071694,-334.9,0.00012834,2]
[323313945,1713885071707,-500.0,0.00012834,2]
[323313946,1713885071717,-588.74,0.00012834,2]
[323313947,1713885071729,-500.0,0.00012834,2]
[323313948,1713885071740,-500.0,0.00012834,2]
[323313949,1713885071750,-1834.36084011,0.00012835,2]
[323313950,1713885071760,-1000.0,0.00012895,2]
[323313951,1713885071772,-500.0,0.00012895,2]
[323313952,1713885071783,-1000.0,0.00012896,2]
[323313953,1713885071792,-500.0,0.00012896,2]
[323313954,1713885071802,-500.0,0.00012899,2]
[323313955,1713885071813,-1834.36084011,0.000129,2]
[323313956,1713885071825,-161.5228818,0.000129,2]
[323313957,1713885071835,-300.0,0.000129,4]
[323313958,1713885071846,-8277.63504656,0.000129,2]
[323313959,1713885071856,-195.33811106,0.000129,2]
[323313960,1713885071867,-500.0,0.00012979,2]
[323313961,1713885071876,-500.0,0.00012979,2]
[323313962,1713885071886,-500.0,0.00012979,2]
[323313963,1713885071896,-500.0,0.00012979,2]
[323313964,1713885071906,-500.0,0.00012979,2]
[323313965,1713885071916,-500.0,0.00012979,2]
[323313966,1713885071926,-500.0,0.00012979,2]
[323313967,1713885071936,-500.0,0.00012979,2]
[323313968,1713885071946,-2000.0,0.00012979,2]
[323313969,1713885071959,-122113.35961376,0.0001298,2]
[323313970,1713885071982,-583.63717948,0.0001298,2]
[323313971,1713885076483,461.52470247,0.00011055,2]
[323313972,1713885076536,155.0,0.00011055,2]
[323313973,1713885077353,194.61821444,0.00011055,2]
[323313975,1713885198974,1644.41,0.00010796,2]
[323313976,1713885236766,4928.14,0.00010767,2]
[323313977,1713885257642,388.83,0.00010795,2]
[323313978,1713885330324,1859.61,0.00010782,2]
[323313979,1713885339502,320.57,8.823e-05,2]
[323313980,1713885339870,320.57,0.00011087,2]
[323313981,1713885412532,4360.99,0.00010762,2]
[323313982,1713885412639,788.87,0.00010762,2]
[323313983,1713885461524,1852.42,0.00010741,2]
[323313984,1713885485151,200.0,0.00010762,2]
[323313985,1713885490485,268.126103,0.00011193,2]
[323313986,1713885520995,157.8,0.00010905,2]
[323313987,1713885521224,157.8,0.00010938,2]
[323313988,1713885521789,157.8,0.00010972,2]
[323313989,1713885521869,157.8,0.00011005,2]
[323313990,1713885521952,157.8,0.00011038,2]
[323313991,1713885522591,157.8,0.00011072,2]
[323313992,1713885522666,157.8,0.00011105,2]
[323313993,1713885522804,157.8,0.00011139,2]
[323313994,1713885523020,157.8,0.00011172,2]
[323313995,1713885539959,13297.34,0.00010627,2]
[323313996,1713885543361,1476.85,0.00010627,2]
[323313998,1713885593026,250.0,0.00010614,2]
[323313999,1713885604528,2067.25,0.00010624,2]
[323314000,1713885704219,156.70180592,0.00011105,2]
[323314001,1713885896128,525.58,0.00010601,2]
[323314002,1713885898099,288.51,8.684e-05,2]
[323314003,1713885898376,288.51,0.00010947,2]
[323314004,1713886017390,1500.0,0.000251,120]
[323314005,1713886043568,157.8,0.00010681,2]
[323314006,1713886044195,157.8,0.0001075,2]
[323314007,1713886044377,157.8,0.0001082,2]
[323314008,1713886044484,157.8,0.0001089,2]
[323314009,1713886044672,157.8,0.00010959,2]
[323314010,1713886045004,157.8,0.00011029,2]
[323314011,1713886045152,157.8,0.00011098,2]
[323314012,1713886045382,157.8,0.00011168,2]
[323314013,1713886056751,1735.0,0.000112,2]
[323314014,1713886105442,1000.0,0.00010777,2]
[323314039,1713886231990,-576.76482703,0.00011204,2]
[323314040,1713886232003,-923.23517297,0.00011204,2]
[323314041,1713886232013,-663.32178835,0.00011205,2]
[323314042,1713886232024,-157.8,0.00011237,2]
[323314043,1713886232035,-265.48818869,0.00011472,2]
[323314044,1713886232280,-35.21181131,0.00011472,2]
[323314045,1713886232289,-150.0,0.00011499,2]
[323314046,1713886232299,-6920.7489188,0.000115,2]
[323314047,1713886232309,-157.29,0.00011541,2]
[323314048,1713886232319,-157.29,0.00011546,2]
[323314049,1713886232329,-157.29,0.00011551,2]
[323314051,1713886232338,-157.29,0.00011557,2]
[323314053,1713886232347,-999.99,0.00011557,2]
[323314054,1713886232356,-499.99,0.00011557,2]
[323314056,1713886232365,-2736.58,0.00011557,2]
[323314057,1713886232374,-1858.82,0.00011557,2]
[323314058,1713886232384,-151.0,0.00011557,2]
[323314059,1713886232393,-152.871566,0.00011557,2]
[323314060,1713886232403,-157.29,0.00011562,2]
[323314061,1713886232412,-157.29,0.00011567,2]
[323314062,1713886232421,-157.29,0.00011572,2]
[323314063,1713886232431,-157.29,0.00011577,2]
[323314064,1713886232440,-157.29,0.00011583,2]
[323314065,1713886232449,-157.29,0.00011588,2]
[323314067,1713886232458,-157.29,0.00011593,2]
[323314069,1713886232468,-157.29,0.00011598,2]
[323314071,1713886232477,-204.38,0.0001163,2]
[323314072,1713886232486,-10000.0,0.00011637,2]
[323314073,1713886232495,-399.56427023,0.00011726,2]
[323314074,1713886232504,-500.0,0.00011735,2]
[323314075,1713886232514,-1121.83,0.00011735,2]
[323314076,1713886232524,-500.0,0.00011735,2]
[323314077,1713886232533,-878.24,0.00011735,2]
[323314078,1713886232542,-807.02,0.00011735,2]
[323314079,1713886232551,-606.35,0.00011735,2]
[323314080,1713886232560,-936.15,0.00011735,2]
[323314081,1713886232570,-500.0,0.00011735,2]